Cogmind - Beta 12 @@@ ROGUE MODE // 2023.03.30 @ 15:58:16 Player: Mr Goldstein Result: Destroyed by H-88 Terminator with KE Penetrator Performance ------------- Evolutions (8) 4000 Regions Visited (10) 2000 Robots Destroyed (116) 580 Value Destroyed (2802) 2802 Prototype IDs (13) 260 Alien Tech Used (0) 0 Bonus (667) 667 TOTAL SCORE: 10309 Bonus ------- High Alert Combat Kills 273 Follower Combat Kills 394 Cogmind --------- Core Integrity 0/1450 Matter 255/300 Energy 100/100 System Corruption 0% Temperature Cool (0) Movement Core (50) Location -2/Research Parts ------- > --- POWER (2) -------- (None) > --- PROPULSION (8) --- (None) > --- UTILITY (11) ----- Advanced Signal Interpreter > --- WEAPON (2) ------- (None) > --- INVENTORY (5) ---- Enhanced Fission Core Light Quantum Reactor Omega Cannon Peak State ------------ > --- POWER ------------ (None) > --- PROPULSION ------- Nuclear Pulse Array Q-thruster > --- UTILITY ---------- Machine Analyzer Improved Signal Interpreter Advanced Signal Interpreter Cloaking Device Hacking Suite Hacking Suite Advanced Hacking Suite > --- WEAPON ----------- Spear > --- INVENTORY -------- Improved Signal Interpreter Improved Recalibrator Autogun [Rating: 53] Favorites ----------- Power Ion Engine Engine Ion Engine Power Core Light Nuclear Core Propulsion Wheel Treads Armored Medium Treads Wheel Wheel Hover Unit Antigrav System Flight Unit Flight Unit Utility Signal Interpreter Device Tractor Beam Storage Large Storage Unit Processor Signal Interpreter Hackware Hacking Suite Protection Medium Armor Plating Weapon Autogun Energy Gun EM Pulse Gun Ballistic Gun Autogun Ballistic Cannon Omega Cannon Launcher Mini Grenade Launcher Slashing Weapon Katana Piercing Weapon Spear Build | -11 -10 -9 -8 -7 -6 -5 -4 -3 -3 -2 ------- Run | Jun Mat Mat Mat Fac Fac Fac Fac Res Tes Res Slots Evolved 16 | . . 2 2 2 2 2 2 2 . 2 Power 1 | . . . . . . 1 . . . . Propulsion 6 | . . 1 1 . . 1 . 1 . 2 Utility 9 | . . 1 1 2 2 . 2 1 . . Weapon . | . . . . . . . . . . . Parts Attached 98 | 6 18 21 24 6 4 6 . 2 11 . Power 13 | 1 2 4 3 . 1 1 . . 1 . Engine 9 | 1 2 4 2 . . . . . . . Core 4 | . . . 1 . 1 1 . . 1 . Reactor . | . . . . . . . . . . . Propulsion 36 | 2 2 10 10 3 . 3 . 1 5 . Treads 1 | . . . . . . . . . 1 . Leg . | . . . . . . . . . . . Wheel 19 | 2 2 10 5 . . . . . . . Hover 2 | . . . . . . . . . 2 . Flight 14 | . . . 5 3 . 3 . 1 2 . Utility 22 | 1 3 1 6 2 3 2 . 1 3 . Device 6 | . 1 1 . . 1 . . 1 2 . Storage 2 | 1 1 . . . . . . . . . Processor 5 | . 1 . 1 . 1 1 . . 1 . Hackware 6 | . . . 2 2 1 1 . . . . Protection 3 | . . . 3 . . . . . . . Artifact . | . . . . . . . . . . . Weapon 27 | 2 11 6 5 1 . . . . 2 . Energy Gun 7 | 2 5 . . . . . . . . . Energy Cannon . | . . . . . . . . . . . Ballistic Gun 13 | . 6 4 2 . . . . . 1 . Ballistic Cannon 1 | . . . . . . . . . 1 . Launcher 4 | . . 2 2 . . . . . . . Special Weapon . | . . . . . . . . . . . Impact Weapon . | . . . . . . . . . . . Slashing Weapon 1 | . . . 1 . . . . . . . Piercing Weapon 1 | . . . . 1 . . . . . . Special Melee Weapon . | . . . . . . . . . . . Unidentified Prototypes 3 | . . . 1 . . . . . 2 . Corrupted Parts 2 | . 2 . . . . . . . . . System Corruption 3 | . 3 . . . . . . . . . Parts Lost 60 | . 7 11 15 6 . 10 . . 9 2 Power 8 | . 1 3 1 1 . 2 . . . . Propulsion 31 | . 2 6 9 4 . 4 . . 5 1 Utility 11 | . 1 . 2 . . 4 . . 3 1 Weapon 10 | . 3 2 3 1 . . . . 1 . Highest Loss Streak 11 | . 6 2 11 3 . 7 . . 7 2 To Critical Strikes . | . . . . . . . . . . . Average Slot Usage (%) 75 | . 82 88 90 86 73 49 42 44 30 18 Engine 6 | . 9 10 8 5 . . . . . . Wheel 17 | . 23 25 26 . . . . . . . Flight 2 | . . . 2 25 13 9 5 8 3 . Device 5 | . 3 8 8 . 6 . . 2 1 1 Storage 7 | . 14 11 8 . . . . . . . Processor 10 | . 4 11 9 15 13 11 15 14 14 12 Hackware 4 | . . . 1 30 33 15 15 14 6 2 Protection 1 | . . . 7 . . . . . . . Energy Gun 2 | . 17 . . . . . . . . . Ballistic Gun 12 | . 9 21 16 . . . . . . . Naked Turns . | . . . . . . . . . . . Heaviest Build 45 | 14 31 36 45 9 8 8 2 3 3 1 Greatest Support 40 | 20 20 36 40 17 9 21 13 21 22 3 Greatest Overweight (x) 3 | . 1 3 3 . . 2 . . . . Average Overweight (x) . | . . 1 . . . . . . . . Largest Inventory Capacity 15 | 8 15 15 15 5 5 5 5 5 5 5 Average Capacity 10 | 6 9 15 14 5 5 5 5 5 5 5 Most Carried 15 | 5 8 15 15 5 2 5 3 4 5 4 Average Carried 9 | 1 6 13 13 3 . 2 3 3 3 3 Final Capacity 15 | 8 15 15 5 5 5 5 5 5 5 5 Final Carried 15 | 2 7 15 5 3 . 3 3 3 3 4 Class Distribution -------------------- 71% | Mutant 9% | Scavenger-Mutant 8% | Hacker-Mutant 4% | Scavenger-Sprinter 3% | Hacker-Sprinter Dominant Class ---------------- Mutant | -10/Materials Mutant | -9/Materials Mutant | -8/Materials Hacker-Mutant | -7/Factory Hacker-Scout | -6/Factory Scavenger-Sprinter | -5/Factory Hacker-Mutant | -4/Factory Hacker-Mutant | -3/Research Mutant | -3/Testing Mutant | -2/Research Resources | -11 -10 -9 -8 -7 -6 -5 -4 -3 -3 -2 ----------- Run | Jun Mat Mat Mat Fac Fac Fac Fac Res Tes Res Matter Collected 2883 | 214 275 1330 918 49 . 74 20 . 3 . Remotely 1748 | . . 896 852 . . . . . . . Salvage Created 3884 | . 550 1939 1197 73 . 125 . . . . Parts 276 | . 40 137 83 5 . 11 . . . . Haulers Intercepted 7 | . 1 4 2 . . . . . . . Recyclers Shooed 4 | . 1 2 . 1 . . . . . . Parts Field Recycled . | . . . . . . . . . . . Retrieved Matter . | . . . . . . . . . . . Parts Self-Destructed . | . . . . . . . . . . . Prevented . | . . . . . . . . . . . Kills | -11 -10 -9 -8 -7 -6 -5 -4 -3 -3 -2 ------- Run | Jun Mat Mat Mat Fac Fac Fac Fac Res Tes Res Combat Hostiles Destroyed 77 | . 10 32 27 3 . 5 . . . . Melee 8 | . . . . 3 . 5 . . . . Guns 59 | . 8 28 23 . . . . . . . AOE 10 | . 2 4 4 . . . . . . . Classes Destroyed 11 | . 6 4 1 . . . . . . . Worker 13 | . 3 8 2 . . . . . . . Tunneler 1 | . . 1 . . . . . . . . Hauler 7 | . 1 4 2 . . . . . . . Recycler 3 | . . 3 . . . . . . . . Mechanic 2 | . . . 2 . . . . . . . Operator 7 | . 2 4 1 . . . . . . . Watcher 6 | . 2 2 2 . . . . . . . Swarmer 26 | . 3 4 11 3 . 5 . . . . Grunt 36 | . 7 21 8 . . . . . . . Duelist 2 | . . 1 1 . . . . . . . Sentry 13 | . . 6 7 . . . . . . . Best Kill Streak 8 | . 4 8 6 2 . 5 . . . . Combat Bots Only 5 | . 4 5 5 2 . 5 . . . . Max Kills in Single Turn 3 | . 2 3 3 1 . 1 . . . . Gunslinging 1 | . . . 1 . . . . . . . Exploded 3 | . 2 3 2 . . . . . . . Melee 1 | . . . . 1 . 1 . . . . Uniques/NPCs Destroyed . | . . . . . . . . . . . Combat | -11 -10 -9 -8 -7 -6 -5 -4 -3 -3 -2 -------- Run | Jun Mat Mat Mat Fac Fac Fac Fac Res Tes Res Damage Taken 8091 | . 532 1076 1603 434 29 810 39 196 1666 1706 Core 4174 | . 100 289 259 269 23 467 39 131 1133 1464 Absorbed by Shields 12 | . . . . . . . . . . 12 Core Remaining (%) 60 | 100 60 27 52 61 97 53 96 . 2 . Volleys Fired 307 | . 67 138 94 . . . . . 8 . Largest 2 | . 2 2 2 . . . . . 1 . Hottest 90 | . 90 53 55 . . . . . 23 . Shots Fired 585 | . 117 274 186 . . . . . 8 . Gun 578 | . 117 271 182 . . . . . 8 . Cannon . | . . . . . . . . . . . Launcher 7 | . . 3 4 . . . . . . . Special . | . . . . . . . . . . . Kinetic 496 | . 35 271 182 . . . . . 8 . Thermal 47 | . 47 . . . . . . . . . Explosive 7 | . . 3 4 . . . . . . . Electromagnetic 35 | . 35 . . . . . . . . . Robot Hit Streak 16 | . 12 16 11 . . . . . . . Robot Miss Streak 5 | . 5 4 3 . . . . . . . Penetration Max . | . . . . . . . . . . . Secondary Targets 5 | . . 3 2 . . . . . . . Max Gunslinging Chain 1 | . . 1 1 . . . . . . . Shots Hit Robots 398 | . 67 188 124 7 . 12 . . . . Core Hits 181 | . 29 75 65 3 . 5 . . . 4 Critical Kills 1 | . . 1 . . . . . . . . Critical Parts Destroyed 6 | . 1 2 3 . . . . . . . Critical Strikes 12 | . 4 3 3 1 . 1 . . . . Burn 3 | . 3 . . . . . . . . . Destroy 7 | . 1 3 3 . . . . . . . Sever 1 | . . . . 1 . . . . . . Impale 1 | . . . . . . 1 . . . . Melee Attacks 48 | . . . 6 17 . 22 . . 3 . Impact . | . . . . . . . . . . . Slashing 23 | . . . 6 17 . . . . . . Piercing 25 | . . . . . . 22 . . 3 . Sneak Attacks 2 | . . . . 1 . 1 . . . . Combat Hostiles . | . . . . . . . . . . . Follow-up Attacks . | . . . . . . . . . . . Damage Inflicted 7534 | . 900 3183 2666 269 4 394 . . 15 103 Guns 5671 | . 818 2995 1858 . . . . . . . Cannons . | . . . . . . . . . . . Explosions 945 | . 79 188 678 . . . . . . . Melee 778 | . . . 130 254 . 394 . . . . Ramming 140 | . 3 . . 15 4 . . . 15 103 Kinetic 5107 | . 254 2995 1858 . . . . . . . Thermal 411 | . 411 . . . . . . . . . Explosive 866 | . . 188 678 . . . . . . . Electromagnetic 232 | . 232 . . . . . . . . . Impact . | . . . . . . . . . . . Slashing 384 | . . . 130 254 . . . . . . Piercing 394 | . . . . . . 394 . . . . Highest Corruption 11 | . 3 . 11 . . . . . 1 . Average Corruption 2 | . 2 . 9 . . . . . 1 . Corruption Purged . | . . . . . . . . . . . Corruption Blocked . | . . . . . . . . . . . Effects 20 | . 12 . 6 . . . . . 2 . Message Errors 7 | . 5 . 1 . . . . . 1 . Matter Fused 7 | . 5 . 1 . . . . . 1 . Heat Flow Errors 1 | . . . 1 . . . . . . . Energy Discharges 2 | . 1 . 1 . . . . . . . Alerts 1 | . 1 . . . . . . . . . Misdirections 2 | . . . 2 . . . . . . . Overload Shots . | . . . . . . . . . . . Overflow Damage 106 | . . . 22 51 . 33 . . . . Projectiles . | . . . . . . . . . . . Explosions 18 | . . . 18 . . . . . . . Melee 88 | . . . 4 51 . 33 . . . . Knockbacks 1 | . . . . . . . . . 1 . Impact 1 | . . . . . . . . . 1 . Kinetic . | . . . . . . . . . . . Secondary . | . . . . . . . . . . . Self-Inflicted Damage 207 | . 31 . 114 7 2 . . . 7 46 Shots 4 | . 1 . 3 . . . . . . . Rammed 26 | . 1 . . 1 1 . . 1 1 21 Targets Rammed 26 | . 1 . . 1 1 . . 1 1 21 Kicked . | . . . . . . . . . . . Crushed . | . . . . . . . . . . . Highest Temperature 452 | . 158 36 178 . . 2 . . 452 . Average Temperature 30 | . 32 8 26 . . 2 . . 232 . Received Heat Transfer 1754 | . 276 507 576 24 6 45 37 12 175 96 Siege Activations . | . . . . . . . . . . . Robots Corrupted . | . . . . . . . . . . . Combat Hostiles . | . . . . . . . . . . . Parts Fried . | . . . . . . . . . . . Impact Corruptions . | . . . . . . . . . . . Robots Melted . | . . . . . . . . . . . Combat Hostiles . | . . . . . . . . . . . Parts Melted . | . . . . . . . . . . . Heat Transferred 1214 | . 1214 . . . . . . . . . Parts Sabotaged . | . . . . . . . . . . . Parts Stolen . | . . . . . . . . . . . Parts Stripped . | . . . . . . . . . . . Power Chain Reactions 1 | . 1 . . . . . . . . . Missiles Intercepted . | . . . . . . . . . . . Alert | -11 -10 -9 -8 -7 -6 -5 -4 -3 -3 -2 ------- Run | Jun Mat Mat Mat Fac Fac Fac Fac Res Tes Res Peak Influence 973 | . 190 641 750 507 293 433 215 253 973 787 Initial 552 | . . . 250 340 238 143 192 112 141 552 Average 361 | . 98 365 514 407 262 257 196 148 432 610 Maximum Alert Level 3 | . . 2 3 2 1 2 1 1 3 3 Low Security (%) 26 | 100 100 10 . . . 39 75 78 36 . Level 1 29 | . . 47 14 59 100 58 24 21 28 . Level 2 40 | . . 42 83 40 . 1 . . 11 89 Level 3 2 | . . . 2 . . . . . 23 10 Level 4 . | . . . . . . . . . . . Level 5 . | . . . . . . . . . . . High Security . | . . . . . . . . . . . Max Security . | . . . . . . . . . . . Squads Dispatched 29 | . 2 4 4 . 1 3 1 . 7 7 Investigation 9 | . . . 1 . . 2 1 . 2 3 Extermination 1 | . . . . . . 1 . . . . Reinforcement 17 | . 2 4 1 . 1 . . . 5 4 Assault 1 | . . . 1 . . . . . . . Garrison 1 | . . . 1 . . . . . . . Intercept . | . . . . . . . . . . . Searches Triggered 1 | . . . . . . 1 . . . . Construction Impeded 2 | . . . . . . . . . 1 1 Haulers Reinforced 2 | . . . . . . . . . . 2 Active Scanning Responses . | . . . . . . . . . . . Cargo Convoy Interrupts . | . . . . . . . . . . . Stealth | -11 -10 -9 -8 -7 -6 -5 -4 -3 -3 -2 --------- Run | Jun Mat Mat Mat Fac Fac Fac Fac Res Tes Res Distress Signals 13 | . . 10 1 . 1 . . 1 . . Communications Jammed . | . . . . . . . . . . . Distress Signals . | . . . . . . . . . . . Times Spotted 257 | . 18 64 52 11 7 31 5 12 34 23 Peak Tracking Total 18 | . 4 10 8 5 8 16 4 8 12 18 Tactical Retreats 33 | . 1 3 7 3 1 8 . 2 3 5 Traps | -11 -10 -9 -8 -7 -6 -5 -4 -3 -3 -2 ------- Run | Jun Mat Mat Mat Fac Fac Fac Fac Res Tes Res Traps Triggered 6 | . 1 1 1 . . . . . . 3 Indirectly . | . . . . . . . . . . . Trap Hack Attempts . | . . . . . . . . . . . Triggered . | . . . . . . . . . . . Disarmed . | . . . . . . . . . . . Reprogrammed 4 | . . . . 4 . . . . . . Reused . | . . . . . . . . . . . Traps Extracted . | . . . . . . . . . . . Installed . | . . . . . . . . . . . Triggered . | . . . . . . . . . . . Machines | -11 -10 -9 -8 -7 -6 -5 -4 -3 -3 -2 ---------- Run | Jun Mat Mat Mat Fac Fac Fac Fac Res Tes Res Machines Disabled 5 | . 1 1 . . . . . . 3 . Max in Single Turn 1 | . 1 1 . . . . . . . . Garrison Access 1 | . . . 1 . . . . . . . Machines Repaired . | . . . . . . . . . . . Machines Sabotaged . | . . . . . . . . . . . Overloaded Fab Kills . | . . . . . . . . . . . Hacking | -11 -10 -9 -8 -7 -6 -5 -4 -3 -3 -2 --------- Run | Jun Mat Mat Mat Fac Fac Fac Fac Res Tes Res Machines Accessed 47 | . 5 8 10 6 1 6 1 2 6 2 Terminals 40 | . 5 6 8 6 1 4 1 2 5 2 Fabricators 2 | . . . . . . 2 . . . . Repair Stations . | . . . . . . . . . . . Recycling Units 1 | . . 1 . . . . . . . . Scanalyzers 3 | . . 1 1 . . . . . 1 . Garrison Access 1 | . . . 1 . . . . . . . Total Hacks 114 | . 14 21 18 17 2 19 3 5 11 4 Successful 48 | . 5 10 10 6 2 10 2 1 2 . Failed 66 | . 9 11 8 11 . 9 1 4 9 4 Catastrophic 18 | . 3 3 4 2 . . . 1 2 3 Database Lockouts . | . . . . . . . . . . . Manual 71 | . 14 13 13 12 2 7 1 3 4 2 Terminals 95 | . 14 15 15 17 2 11 3 5 9 4 Fabricators 8 | . . . . . . 8 . . . . Repair Stations . | . . . . . . . . . . . Recycling Units 3 | . . 3 . . . . . . . . Scanalyzers 7 | . . 3 2 . . . . . 2 . Garrison Access 1 | . . . 1 . . . . . . . Terminal Hacks 30 | . 3 6 6 5 2 4 1 1 2 . Record 3 | . . . . . . 1 1 . 1 . Part Schematic 1 | . . . . . . 1 . . . . Robot Schematic 1 | . . . . 1 . . . . . . Robot Analysis 1 | . . 1 . . . . . . . . Prototype ID Bank 7 | . 2 4 1 . . . . . . . Open Door 1 | . . . . . . . . . 1 . Level Access Points 4 | . . . 1 1 1 1 . . . . Branch Access Points 1 | . . . . . . . . 1 . . Emergency Access Points 1 | . . . . . . 1 . . . . Terminal Index 3 | . 1 . 1 1 . . . . . . Alert Level 1 | . . . . 1 . . . . . . Unreport Threat 1 | . . . 1 . . . . . . . Reprogram Traps 1 | . . . . 1 . . . . . . Recall Reinforcements 1 | . . . . . 1 . . . . . Hauler Manifests 2 | . . 1 1 . . . . . . . Registered Components 1 | . . . 1 . . . . . . . Fabricator Hacks 4 | . . . . . . 4 . . . . Network Status 1 | . . . . . . 1 . . . . Load Schematic 2 | . . . . . . 2 . . . . Build 1 | . . . . . . 1 . . . . Repair Station Hacks . | . . . . . . . . . . . Recycling Unit Hacks 1 | . . 1 . . . . . . . . Retrieve Components 1 | . . 1 . . . . . . . . Scanalyzer 3 | . . 1 2 . . . . . . . Insert Component 2 | . . 1 1 . . . . . . . Analyze 1 | . . . 1 . . . . . . . Garrison Access Hacks 1 | . . . 1 . . . . . . . Seal Access 1 | . . . 1 . . . . . . . Unauthorized Hacks 9 | . 2 2 1 1 . 2 1 . . . Terminals 7 | . 2 1 1 1 . 1 1 . . . Assimilate 4 | . 1 . . 1 . 1 1 . . . Operators 3 | . 1 1 1 . . . . . . . Fabricators 1 | . . . . . . 1 . . . . Liberate 1 | . . . . . . 1 . . . . Repair Stations . | . . . . . . . . . . . Recycling Units 1 | . . 1 . . . . . . . . Mask 1 | . . 1 . . . . . . . . Scanalyzers . | . . . . . . . . . . . Garrison Access . | . . . . . . . . . . . Data Cores Recovered . | . . . . . . . . . . . Used . | . . . . . . . . . . . Hacking Detections 39 | . 5 6 6 6 1 5 1 2 5 2 Full Trace Events 7 | . . . . . . 2 1 . 2 2 Feedback Events . | . . . . . . . . . . . Feedback Blocked . | . . . . . . . . . . . Robot Schematics Acquired 1 | . . . . 1 . . . . . . Robots Built . | . . . . . . . . . . . Authchips . | . . . . . . . . . . . Time 116 | . . . . . . 116 . . . . Total Robot Build Rating . | . . . . . . . . . . . Part Schematics Acquired 2 | . . . 1 . . 1 . . . . Parts Built . | . . . . . . . . . . . Authchips . | . . . . . . . . . . . Time . | . . . . . . . . . . . Total Part Build Rating . | . . . . . . . . . . . Parts Repaired . | . . . . . . . . . . . Time . | . . . . . . . . . . . Parts Recycled . | . . . . . . . . . . . Recycled Matter . | . . . . . . . . . . . Retrieved Matter . | . . . . . . . . . . . Retrieved Components 9 | . . 9 . . . . . . . . Parts Scanalyzed 2 | . . 1 1 . . . . . . . Part Schematics Acquired 1 | . . . 1 . . . . . . . Parts Damaged . | . . . . . . . . . . . Bothacking | -11 -10 -9 -8 -7 -6 -5 -4 -3 -3 -2 ------------ Run | Jun Mat Mat Mat Fac Fac Fac Fac Res Tes Res Used RIF Installer . | . . . . . . . . . . . Robots Hacked . | . . . . . . . . . . . Non-combat . | . . . . . . . . . . . Combat . | . . . . . . . . . . . Robot Hacks Applied . | . . . . . . . . . . . Relay Couplers Released . | . . . . . . . . . . . Fabnet Peak Effective % . | . . . . . . . . . . . Robots Rewired 3 | . . . . 1 1 . . . 1 . Allies Hacked . | . . . . . . . . . . . Hacks Repelled . | . . . . . . . . . . . Allies | -11 -10 -9 -8 -7 -6 -5 -4 -3 -3 -2 -------- Run | Jun Mat Mat Mat Fac Fac Fac Fac Res Tes Res Total Allies 6 | . . . . 2 1 1 1 . 1 . Largest Group 2 | . . . . 2 1 1 1 1 1 . Highest-Rated Group 118 | . . . . 46 32 10 26 26 118 . Highest-Rated Ally 118 | . . . . 26 32 10 26 26 118 . Total Orders 1 | . . . . 1 . . . . . . GUARD 1 | . . . . 1 . . . . . . Ally Attacks 26 | . . . . . 2 . . . 24 . Total Damage 6510 | . . . . . 88 . . . 6422 . Kills 32 | . . . . . . . . . 32 . Allies Corrupted . | . . . . . . . . . . . Allies Melted . | . . . . . . . . . . . Intel | -11 -10 -9 -8 -7 -6 -5 -4 -3 -3 -2 ------- Run | Jun Mat Mat Mat Fac Fac Fac Fac Res Tes Res Robot Analysis Total 1 | . . 1 . . . . . . . . Derelict Logs Recovered . | . . . . . . . . . . . Drone Launches . | . . . . . . . . . . . Drone Recoveries . | . . . . . . . . . . . Exploration | -11 -10 -9 -8 -7 -6 -5 -4 -3 -3 -2 ------------- Run | Jun Mat Mat Mat Fac Fac Fac Fac Res Tes Res Turns Passed 5232 | 44 812 1809 1045 251 86 331 49 79 354 372 Spaces Moved 5782 | 44 626 1281 780 496 202 734 124 201 679 615 Core 933 | 15 . . . . 22 7 . . 274 615 Treads . | . . . . . . . . . . . Legs . | . . . . . . . . . . . Wheels 2559 | 29 626 1281 623 . . . . . . . Hover 41 | . . . . . . . . . 41 . Flight 2249 | . . . 157 496 180 727 124 201 364 . Fastest Speed 28 | 50 80 80 31 28 37 30 40 37 37 50 Average Speed 63 | 69 83 96 83 32 38 34 40 37 44 50 Slowest Speed 150 | 80 95 125 125 37 50 150 40 40 60 50 Overloaded Moves . | . . . . . . . . . . . Propulsion Burnouts . | . . . . . . . . . . . Robots Hopped 48 | . . . 2 8 5 14 3 3 13 . Cave-ins Triggered . | . . . . . . . . . . . Exploration Rate (%) 31 | 4 77 71 64 13 9 20 3 10 53 17 Regions Visited 10 Branch Regions 1 Pre-discovered Areas . | . . . . . . . . . . . Known Exits Taken 8 | . 1 1 1 1 1 1 . 1 1 . Unknown Exits Taken 2 | 1 . . . . . . 1 . . . Scrap Searched . | . . . . . . . . . . . Spaces Dug 14 | . . 14 . . . . . . . . Terrain Destroyed 63 | . 2 25 36 . . . . . . . Melee . | . . . . . . . . . . . Projectile . | . . . . . . . . . . . AOE 63 | . 2 25 36 . . . . . . . Terrain Rammed . | . . . . . . . . . . . Walls Destroyed . | . . . . . . . . . . . Machines Disabled . | . . . . . . . . . . . Actions | -11 -10 -9 -8 -7 -6 -5 -4 -3 -3 -2 --------- Run | Jun Mat Mat Mat Fac Fac Fac Fac Res Tes Res Total 6754 | 57 804 1633 1030 552 204 764 120 202 709 679 Wait 417 | . 65 166 108 36 . 6 . . 8 28 Move 5683 | 43 625 1280 776 480 192 706 119 195 652 615 Hop 43 | . . . 1 8 4 13 1 3 13 . Pick Up 86 | 8 21 23 11 3 1 10 . 2 6 1 Fast Attach 10 | . 1 3 4 . . . . . 2 . Attach 69 | 6 13 12 13 5 3 6 . 2 9 . Detach 2 | . . . . . . . . . 2 . Swap 20 | . 4 7 7 1 1 . . . . . Drop 25 | . 7 4 10 . . 1 . . 3 . Fire 307 | . 67 138 94 . . . . . 8 . Melee 48 | . . . 6 17 . 22 . . 3 . Ram 24 | . 1 . . . 1 . . . 1 21 Kick . | . . . . . . . . . . . Crush . | . . . . . . . . . . . Escape Stasis 14 | . . . . . . . . . . 14 Rewire 6 | . . . . 2 2 . . . 2 . Trap . | . . . . . . . . . . . Miscellaneous . | . . . . . . . . . . . Route ------- -11/Junkyard -10/Materials (discovered 3 exits: *Mat x2 / [*Min]) -9/Materials (discovered 5 exits: *Mat x2 / *Min x2 / *Sto) -8/Materials (discovered 3 exits: *Fac x3) -7/Factory (discovered 4 exits: *Fac x4) -6/Factory (discovered 4 exits: *Fac x4) -5/Factory (discovered 4 exits: *Fac x4) -4/Factory -3/Research (discovered 3 exits: Arm / *Tes x2) -3/Testing -2/Research (discovered 1 exit: [*Acc]) History --------- Turn | Location | Event 8 | -11/Junkyard | Discovered new exit (range 15) 45 | -11/Junkyard | Entered Materials 317 | -10/Materials | Build established: Mutant 355 | -10/Materials | Lost 6 parts (1p1n1u3w) 425 | -10/Materials | Discovered new exit (range 10) 603 | -10/Materials | Discovered new exit (range 6) 723 | -10/Materials | Discovered new exit (range 14) 856 | -10/Materials | Identified exit to Materials 857 | -10/Materials | Entered another Materials area 857 | -9/Materials | Evolved 2 slots: Propulsion x1, Utility x1 1527 | -9/Materials | Core integrity fell below 50% 1669 | -9/Materials | Discovered new exit (range 16) 2078 | -9/Materials | Discovered new exit (range 16) 2196 | -9/Materials | Discovered new exit (range 5) 2199 | -9/Materials | Identified exit to Storage 2294 | -9/Materials | Discovered new exit (range 12) 2337 | -9/Materials | Identified exit to Materials 2459 | -9/Materials | Identified exit to Mines 2496 | -9/Materials | Discovered exit to Mines (range 14) 2666 | -9/Materials | Entered another Materials area 2666 | -8/Materials | Evolved 2 slots: Propulsion x1, Utility x1 2709 | -8/Materials | Garrison activated, responded to threat 3466 | -8/Materials | First assault squad dispatched 3640 | -8/Materials | System corruption reached 10% 3670 | -8/Materials | Lost 11 parts (1p5n2u3w) 3702 | -8/Materials | Identified exit to Factory 3711 | -8/Materials | Entered Factory 3711 | -7/Factory | Evolved 2 slots: Utility x2 3818 | -7/Factory | Identified exit to Factory 3947 | -7/Factory | Lost 3 parts (1p2n) 3962 | -7/Factory | Entered another Factory area 3962 | -6/Factory | Evolved 2 slots: Utility x2 3996 | -6/Factory | Identified exit to Factory 4048 | -6/Factory | Entered another Factory area 4048 | -5/Factory | Evolved 2 slots: Power x1, Propulsion x1 4152 | -5/Factory | Lost 7 parts (1p2n4u) 4272 | -5/Factory | Spotted B-75 Beast 4344 | -5/Factory | Identified exit to Factory 4348 | -5/Factory | Search patrols dispatched 4379 | -5/Factory | Entered another Factory area 4379 | -4/Factory | Evolved 2 slots: Utility x2 4420 | -4/Factory | Discovered new exit (range 8) 4428 | -4/Factory | Entered Research 4428 | -3/Research | Accompanied by 1 ally 4428 | -3/Research | Evolved 2 slots: Propulsion x1, Utility x1 4484 | -3/Research | Identified exit to Armory 4484 | -3/Research | Identified exit to Testing 4507 | -3/Research | Entered Testing 4631 | -3/Testing | Spotted PD-JXJV6WJQIT 4634 | -3/Testing | Rewired PD-JXJV6WJQIT 4638 | -3/Testing | Core integrity fell below 50% 4648 | -3/Testing | Lost 7 parts (3n3u1w) 4739 | -3/Testing | Found Prototype Ballistic Cannon 4742 | -3/Testing | Identified Omega Cannon 4802 | -3/Testing | Core integrity fell below 20% 4857 | -3/Testing | Discovered new exit (range 9) 4861 | -3/Testing | Identified exit to Research 4861 | -3/Testing | Entered Research 4861 | -2/Research | Evolved 2 slots: Propulsion x2 5071 | -2/Research | Spotted B-90 Cyclops 5135 | -2/Research | Core integrity fell below 50% 5174 | -2/Research | Core integrity fell below 20% 5228 | -2/Research | Discovered new exit (range 15) 5233 | -2/Research | Destroyed by H-88 Terminator with KE Penetrator Last Messages --------------- 05151_ ALERT: Cargo convoy en route, clear transfer corridor. 05153_ Triggered Alarm Trap. 05153_ An alarm sounds. 05153_ ALERT: Alarm triggered, dispatching investigation squad. 05171_ Slug penetrates H-88 Terminator. 05171_ Slug penetrates Wall. 05171_ Penetrated by Slug. 05172_ Slug penetrates U-05 Engineer. 05173_ Slug penetrates Wall. 05211_ Connecting with Terminal... 05211_ ALERT: Suspicious activity at Terminal R015. Dispatching Investigation squad. 05226_ Penetrated by Slug. 05228_ EXIT=FOUND 05229_ Slammed into H-88 Terminator. 05229_ Slug penetrates Wall. 05229_ Penetrated by Slug. 05230_ Slug penetrates Wall. 05231_ Slammed into H-88 Terminator. 05232_ Penetrated by Slug. Map ----- +----------------------------------------------------+ | #### #?????????????????????????????? | | ???? #?????????????????????????????? | | ????? #?????????????????????????????? | | ????? #?????????????????????????????? | | ?????? ??????????????????????????????? | | ??????????????????????????????????????? | | ??????????????????????????????????????? | | ??????????????????????????????????????? | | ??????????????????????????????????????? | | ??????????????????????????????????????? | | ???????????????????????? ???????????? | | ???????????????????????? ???????????? | | ???????????????????????? ???????????? | | ???????????????????????? ???????????? | | ???????????????????????? ???????????? | | ???????????????????????? ???????????? | | ???????????????????????? < ???????????? | | ???????????????????????? ???????????? | | ???????????????????????? ???????????? | | ????????????????????????#H#???????????? | | ????????????????????????# #???????????? | | T""""???????????????????# #???????????? | | """"""??????????????????h #???????????? | | ????????????????????????# #???######??? | | ????????????????????????#h#??? ???? | | ????????????????????????#@#??# ??# | | ????????????????????????# #??# """ # | | ????????????????????????# #??# """ # | | ??##??###??############?# #??# """ # | | ??# # #?# #??# # | | #?# # %! #?#h#### ? | | #?# """"" # !! #?# # """ # | | #?# """"" # #?# # """ # | | #?# """"" # #?# t + """ # | | #?# # #?# # # | | #?? | # #?# # # | | #???? ??# #?# # """ # | | #######+##########+###### # """ # | | # """ # | | # ?# | | # ?? | | # ?? | | #######+### ###+###### ########?? | | # # # # #????????? | | # # # # #????????? | | # ###### # #????????? | | # """"" #????# # #????????? | | # """"" #????# # #????????? | | #! """"" #????# # #????????? | | # #????# #### #????????? | +----------------------------------------------------+ Best States ------------- Heat Dissipation 49 Energy Generation 18 Energy Capacity 310 Matter Stores 300 Matter Capacity 300 Sight Range 16 Robot Scan Range 15 Terrain Scan Density 10 Cloak Strength 2 Armor Coverage 225 Evasion (%) 64 Offensive Hacking 50 Item Schematics ----------------- Hacking Suite | -8/Materials | Scanalyzed Imp. Cesium-ion Thruster | -5/Factory | Hacked Robot Schematics ------------------ H-55 Commando | -7/Factory | Hacked Fabricated ------------ Nothing Alien Tech Used ----------------- None Achievements -------------- None Challenges ------------ None Game ------ Seed EnergyGammaMatrix Manual? 0 Play Time 01:18:24 Cumulative 50.2 hours Start 2023.03.30 @ 13:51:45 End 2023.03.30 @ 15:58:16 Sessions 1 Manual Loads 0 Difficulty Rogue Special Mode None Game No. 74 Rogue 74 Adventurer 0 Explorer 0 Win Type - Total 0 Types 0/0/0/0/0/0/0/0/0 Lore% 36 Gallery% 36 Achievement% 33 Wizard Run 0 Options --------- ASCII 0 Keyboard 0 Movement Arrows Keybinds 0 Fullscreen 1 Font 12/Smallcaps Map View 83x54 Tactical HUD 1 Map Filters NONE Filters NONE Steam 1 RUN: 60c70244-7e0b-4169-98e2-52d814976ab2